[Event "*** Titled Tuesday Blitz"]
[Site "Chess.com"]
[Date "2019.05.07"]
[Round "6"]
[White "MateusViageiro"]
[Black "el-reptiliano"]
[Result "0-1"]
[WhiteElo "2152"]
[BlackElo "2179"]
[TimeControl "180+2"]
[EndTime "14:27:02 PDT"]
[Termination "el-reptiliano won by checkmate"]

1. e4 {[%clk 0:03:01.9]} 1... c5 {[%clk 0:02:59.3]} 2. Nf3 {[%clk 0:03:01.1]}
2... e6 {[%clk 0:03:00.5]} 3. d4 {[%clk 0:03:01]} 3... cxd4 {[%clk 0:03:02.4]}
4. Nxd4 {[%clk 0:03:01.5]} 4... Nc6 {[%clk 0:03:03.9]} 5. Nc3 {[%clk 0:03:01.9]}
5... Qc7 {[%clk 0:03:05.2]} 6. Ndb5 {[%clk 0:03:01.4]} 6... Qb8 {[%clk
0:03:05.3]} 7. g3 {[%clk 0:03:00.8]} 7... a6 {[%clk 0:03:02.6]} 8. Nd4 {[%clk
0:02:59.4]} 8... Nf6 {[%clk 0:02:55.2]} 9. Bg2 {[%clk 0:02:58.2]} 9... h5 {[%clk
0:02:55.9]} 10. Bf4 {[%clk 0:02:50]} 10... e5 {[%clk 0:02:52.1]} 11. Nxc6 {[%clk
0:02:47.9]} 11... bxc6 {[%clk 0:02:54]} 12. Bc1 {[%clk 0:02:47.7]} 12... h4
{[%clk 0:02:36.9]} 13. O-O {[%clk 0:02:47.4]} 13... Bc5 {[%clk 0:02:33]} 14. Na4
{[%clk 0:02:38.7]} 14... Ba7 {[%clk 0:02:32.8]} 15. g4 {[%clk 0:02:26]} 15... h3
{[%clk 0:01:38.7]} 16. Bf3 {[%clk 0:02:26]} 16... d6 {[%clk 0:00:59.2]} 17. g5
{[%clk 0:02:24.5]} 17... Ng8 {[%clk 0:00:55.6]} 18. c4 {[%clk 0:02:20.5]} 18...
Ne7 {[%clk 0:00:54.1]} 19. b3 {[%clk 0:02:17.3]} 19... Be6 {[%clk 0:00:45.5]}
20. Ba3 {[%clk 0:02:16.8]} 20... c5 {[%clk 0:00:45.3]} 21. Nc3 {[%clk
0:02:08.3]} 21... Ng6 {[%clk 0:00:45.1]} 22. Kh1 {[%clk 0:02:07.8]} 22... Qc7
{[%clk 0:00:40.1]} 23. Bg4 {[%clk 0:02:07.9]} 23... Qd7 {[%clk 0:00:38.8]} 24.
Bxe6 {[%clk 0:02:06.5]} 24... Qxe6 {[%clk 0:00:40.7]} 25. Nd5 {[%clk 0:02:07.9]}
25... Bb8 {[%clk 0:00:39.6]} 26. Qe2 {[%clk 0:02:02.3]} 26... Rh4 {[%clk
0:00:39.4]} 27. Rg1 {[%clk 0:02:01.3]} 27... Nf4 {[%clk 0:00:36]} 28. Nxf4
{[%clk 0:02:01.2]} 28... exf4 {[%clk 0:00:37.1]} 29. f3 {[%clk 0:01:54.6]} 29...
Bc7 {[%clk 0:00:33.1]} 30. Bb2 {[%clk 0:01:54.7]} 30... f6 {[%clk 0:00:21]} 31.
gxf6 {[%clk 0:01:53.5]} 31... gxf6 {[%clk 0:00:22.9]} 32. Rg7 {[%clk 0:01:50.2]}
32... O-O-O {[%clk 0:00:23]} 33. Rag1 {[%clk 0:01:45.8]} 33... f5 {[%clk
0:00:21.5]} 34. R1g6 {[%clk 0:01:40]} 34... Qe8 {[%clk 0:00:22]} 35. e5 {[%clk
0:01:40.2]} 35... dxe5 {[%clk 0:00:21.6]} 36. Qf2 {[%clk 0:01:34.9]} 36... e4
{[%clk 0:00:21.5]} 37. Qxh4 {[%clk 0:01:27.4]} 37... exf3 {[%clk 0:00:20.2]} 38.
Rg1 {[%clk 0:01:14.3]} 38... Qe2 {[%clk 0:00:20.5]} 39. Bc3 {[%clk 0:00:54.3]}
39... f2 {[%clk 0:00:19.4]} 40. Qxh3 {[%clk 0:00:50.3]} 40... fxg1=Q+ {[%clk
0:00:20.1]} 41. Rxg1 {[%clk 0:00:51.1]} 41... f3 {[%clk 0:00:21.3]} 42. Qxf5+
{[%clk 0:00:51.7]} 42... Kb8 {[%clk 0:00:21.2]} 43. Re1 {[%clk 0:00:44.6]} 43...
Qxh2# {[%clk 0:00:20.6]} 0-1

[Event "*** Titled Tuesday Blitz"]
[Site "Chess.com"]
[Date "2019.05.07"]
[Round "6"]
[White "gliglu"]
[Black "AliKa2810"]
[Result "1-0"]
[WhiteElo "2577"]
[BlackElo "2481"]
[TimeControl "180+2"]
[EndTime "14:27:11 PDT"]
[Termination "gliglu won on time"]

1. e4 {[%clk 0:02:58.6]} 1... e6 {[%clk 0:02:58.5]} 2. d4 {[%clk 0:02:58.3]}
2... d5 {[%clk 0:02:59.7]} 3. Nd2 {[%clk 0:02:59.2]} 3... c5 {[%clk 0:02:59.7]}
4. Ngf3 {[%clk 0:02:58.7]} 4... Nc6 {[%clk 0:03:00]} 5. exd5 {[%clk 0:02:56.8]}
5... exd5 {[%clk 0:03:00.8]} 6. Be2 {[%clk 0:02:57.6]} 6... Nf6 {[%clk
0:03:00.2]} 7. O-O {[%clk 0:02:58.3]} 7... Qc7 {[%clk 0:02:55.6]} 8. dxc5 {[%clk
0:02:56.2]} 8... Bxc5 {[%clk 0:02:55.8]} 9. Nb3 {[%clk 0:02:57.2]} 9... Be7
{[%clk 0:02:51.9]} 10. Bg5 {[%clk 0:02:57]} 10... O-O {[%clk 0:02:53.2]} 11.
Nbd4 {[%clk 0:02:54.3]} 11... Be6 {[%clk 0:02:42.9]} 12. c3 {[%clk 0:02:53.7]}
12... Rae8 {[%clk 0:02:38.9]} 13. Bb5 {[%clk 0:02:51.6]} 13... a6 {[%clk
0:02:32.2]} 14. Nxc6 {[%clk 0:02:50.1]} 14... bxc6 {[%clk 0:02:19.5]} 15. Bxa6
{[%clk 0:02:50.6]} 15... Qb6 {[%clk 0:02:20.2]} 16. Bd3 {[%clk 0:02:47.5]} 16...
Qxb2 {[%clk 0:02:20]} 17. a4 {[%clk 0:02:48.3]} 17... h6 {[%clk 0:02:11.3]} 18.
Be3 {[%clk 0:02:45.9]} 18... Qxc3 {[%clk 0:02:07.1]} 19. Rc1 {[%clk 0:02:41.8]}
19... Qa5 {[%clk 0:02:06.1]} 20. Rxc6 {[%clk 0:02:38.4]} 20... Ra8 {[%clk
0:02:04.8]} 21. Bb5 {[%clk 0:02:35.1]} 21... Bd7 {[%clk 0:02:00.2]} 22. Bd2
{[%clk 0:02:19.4]} 22... Qa7 {[%clk 0:01:58]} 23. Rc1 {[%clk 0:02:13.5]} 23...
Rfb8 {[%clk 0:01:39.5]} 24. Qe2 {[%clk 0:02:05]} 24... Bxb5 {[%clk 0:01:26.4]}
25. axb5 {[%clk 0:02:05]} 25... Bc5 {[%clk 0:01:28]} 26. Rb1 {[%clk 0:01:53.8]}
26... Ne4 {[%clk 0:01:28]} 27. Bf4 {[%clk 0:01:51.5]} 27... Nc3 {[%clk
0:01:27.8]} 28. Qb2 {[%clk 0:01:45.7]} 28... Nxb1 {[%clk 0:01:24.4]} 29. Bxb8
{[%clk 0:01:46.1]} 29... Rxb8 {[%clk 0:01:22.3]} 30. Rxb1 {[%clk 0:01:46.8]}
30... Qb6 {[%clk 0:01:05.3]} 31. Qd2 {[%clk 0:01:43.3]} 31... Re8 {[%clk
0:00:56.5]} 32. h3 {[%clk 0:01:41.4]} 32... Qe6 {[%clk 0:00:47.1]} 33. Re1
{[%clk 0:01:34]} 33... Qd7 {[%clk 0:00:44.8]} 34. Rb1 {[%clk 0:01:26.9]} 34...
Qe6 {[%clk 0:00:45.3]} 35. Qc2 {[%clk 0:01:24]} 35... Bb6 {[%clk 0:00:37.9]} 36.
Ra1 {[%clk 0:01:09.5]} 36... Qe2 {[%clk 0:00:35.5]} 37. Qf5 {[%clk 0:00:37.3]}
37... Qxf2+ {[%clk 0:00:34.2]} 38. Kh1 {[%clk 0:00:38.1]} 38... d4 {[%clk
0:00:26.7]} 39. Qd7 {[%clk 0:00:33.5]} 39... Qe3 {[%clk 0:00:18.7]} 40. Re1
{[%clk 0:00:27.4]} 40... Rd8 {[%clk 0:00:15.9]} 41. Qc6 {[%clk 0:00:21.2]} 1-0

[Event "*** Titled Tuesday Blitz"]
[Site "Chess.com"]
[Date "2019.05.07"]
[Round "6"]
[White "TargetA"]
[Black "Marcus_Harvey"]
[Result "0-1"]
[WhiteElo "2446"]
[BlackElo "2644"]
[TimeControl "180+2"]
[EndTime "14:27:16 PDT"]
[Termination "Marcus_Harvey won by resignation"]

1. e4 {[%clk 0:03:01.9]} 1... e6 {[%clk 0:02:59.9]} 2. d3 {[%clk 0:03:01.4]}
2... c5 {[%clk 0:02:59.9]} 3. Nd2 {[%clk 0:03:01.1]} 3... Nc6 {[%clk 0:03:00.9]}
4. Ngf3 {[%clk 0:03:02.6]} 4... d6 {[%clk 0:03:01.5]} 5. g3 {[%clk 0:03:01.2]}
5... Nge7 {[%clk 0:03:02.5]} 6. Bg2 {[%clk 0:03:02.5]} 6... g6 {[%clk 0:03:04]}
7. O-O {[%clk 0:03:03.3]} 7... Bg7 {[%clk 0:03:05.5]} 8. Nc4 {[%clk 0:03:02.6]}
8... O-O {[%clk 0:03:06.7]} 9. a4 {[%clk 0:03:02]} 9... d5 {[%clk 0:03:06.8]}
10. Ne3 {[%clk 0:02:59.4]} 10... dxe4 {[%clk 0:02:59.7]} 11. dxe4 {[%clk
0:02:59.7]} 11... Qxd1 {[%clk 0:02:58.7]} 12. Rxd1 {[%clk 0:03:01.6]} 12... b6
{[%clk 0:02:55.6]} 13. Nc4 {[%clk 0:02:35.8]} 13... Ba6 {[%clk 0:02:55.8]} 14.
Bf1 {[%clk 0:02:24.4]} 14... Rfd8 {[%clk 0:02:53.1]} 15. Bg5 {[%clk 0:02:22.8]}
15... Bxc4 {[%clk 0:02:49.4]} 16. Bxc4 {[%clk 0:02:19]} 16... Bxb2 {[%clk
0:02:49.1]} 17. Rab1 {[%clk 0:02:17.2]} 17... Bc3 {[%clk 0:02:41.9]} 18. Bb5
{[%clk 0:02:12.8]} 18... f6 {[%clk 0:02:37.7]} 19. Be3 {[%clk 0:02:07.2]} 19...
Rxd1+ {[%clk 0:02:32.6]} 20. Rxd1 {[%clk 0:02:07.4]} 20... Rd8 {[%clk
0:02:34.1]} 21. Rb1 {[%clk 0:02:02.8]} 21... Na5 {[%clk 0:02:26.2]} 22. Kf1
{[%clk 0:01:57.6]} 22... Nec6 {[%clk 0:02:26.4]} 23. Ke2 {[%clk 0:01:50.4]}
23... Nb4 {[%clk 0:02:27]} 24. Rd1 {[%clk 0:01:32]} 24... Rxd1 {[%clk
0:02:23.9]} 25. Kxd1 {[%clk 0:01:33.9]} 25... a6 {[%clk 0:02:19.2]} 26. Bd7
{[%clk 0:01:30.5]} 26... Kf7 {[%clk 0:02:19.9]} 27. Nd2 {[%clk 0:01:29.8]} 27...
Ke7 {[%clk 0:02:19.8]} 28. Bc8 {[%clk 0:01:30.2]} 28... Bd4 {[%clk 0:02:08.2]}
29. Bf4 {[%clk 0:01:07.4]} 29... e5 {[%clk 0:01:45.4]} 30. Be3 {[%clk
0:01:05.2]} 30... Bxe3 {[%clk 0:01:46.1]} 31. fxe3 {[%clk 0:01:07.1]} 31... Kd8
{[%clk 0:01:44.3]} 32. Be6 {[%clk 0:01:06.8]} 32... Nbc6 {[%clk 0:01:42.9]} 33.
Bg8 {[%clk 0:01:04.9]} 33... Ne7 {[%clk 0:01:41.9]} 34. Be6 {[%clk 0:00:58.2]}
34... h6 {[%clk 0:01:36]} 35. c3 {[%clk 0:00:54.5]} 35... b5 {[%clk 0:01:35.7]}
36. axb5 {[%clk 0:00:54]} 36... axb5 {[%clk 0:01:37.6]} 37. Kc2 {[%clk
0:00:54.5]} 37... Kc7 {[%clk 0:01:37.7]} 38. Nf3 {[%clk 0:00:51.5]} 38... Nb7
{[%clk 0:01:37.2]} 39. Nh4 {[%clk 0:00:49.5]} 39... Nd6 {[%clk 0:01:37.5]} 40.
Bd5 {[%clk 0:00:47.6]} 40... c4 {[%clk 0:01:35.3]} 41. Ba8 {[%clk 0:00:43.7]}
41... Kb6 {[%clk 0:01:35.7]} 42. Kb2 {[%clk 0:00:35.5]} 42... Kc5 {[%clk
0:01:32.4]} 43. Ka3 {[%clk 0:00:34.1]} 43... g5 {[%clk 0:01:29.6]} 44. Nf3
{[%clk 0:00:33]} 44... Nc6 {[%clk 0:01:30]} 45. Nd2 {[%clk 0:00:33.7]} 45... g4
{[%clk 0:01:25.2]} 46. Kb2 {[%clk 0:00:26.8]} 46... b4 {[%clk 0:01:14.8]} 47.
cxb4+ {[%clk 0:00:24.1]} 47... Nxb4 {[%clk 0:01:14.1]} 48. Kc3 {[%clk
0:00:23.3]} 48... Nb5+ {[%clk 0:01:11.9]} 49. Kb2 {[%clk 0:00:21.2]} 49... c3+
{[%clk 0:01:12.5]} 50. Kc1 {[%clk 0:00:23.1]} 50... cxd2+ {[%clk 0:01:14.2]} 51.
Kxd2 {[%clk 0:00:24.3]} 51... Nc6 {[%clk 0:01:15]} 52. Bb7 {[%clk 0:00:23.2]}
52... Nd6 {[%clk 0:01:16.1]} 53. Ba6 {[%clk 0:00:21.5]} 53... Nb4 {[%clk
0:01:16.6]} 54. Be2 {[%clk 0:00:20.7]} 54... Nxe4+ {[%clk 0:01:17.7]} 55. Ke1
{[%clk 0:00:22.1]} 55... f5 {[%clk 0:01:18.8]} 56. Kf1 {[%clk 0:00:20.4]} 56...
h5 {[%clk 0:01:19.7]} 57. Kg2 {[%clk 0:00:21.1]} 57... Nd5 {[%clk 0:01:20.7]}
0-1

[Event "*** Titled Tuesday Blitz"]
[Site "Chess.com"]
[Date "2019.05.07"]
[Round "6"]
[White "TristanCalistri"]
[Black "Jadeit90"]
[Result "1-0"]
[WhiteElo "2181"]
[BlackElo "2365"]
[TimeControl "180+2"]
[EndTime "14:27:19 PDT"]
[Termination "TristanCalistri won by resignation"]

1. e4 {[%clk 0:03:01.9]} 1... g6 {[%clk 0:02:56.3]} 2. d4 {[%clk 0:03:02.4]}
2... Bg7 {[%clk 0:02:53.2]} 3. Nf3 {[%clk 0:03:04.3]} 3... c5 {[%clk 0:02:49.9]}
4. Be2 {[%clk 0:03:02.8]} 4... cxd4 {[%clk 0:02:43.2]} 5. Nxd4 {[%clk
0:03:04.7]} 5... Nc6 {[%clk 0:02:43.6]} 6. Nb3 {[%clk 0:03:06]} 6... Nf6 {[%clk
0:02:44]} 7. Nc3 {[%clk 0:03:05.7]} 7... O-O {[%clk 0:02:44.4]} 8. O-O {[%clk
0:03:07.2]} 8... a5 {[%clk 0:02:45.6]} 9. a4 {[%clk 0:03:07.5]} 9... d6 {[%clk
0:02:42.3]} 10. Kh1 {[%clk 0:03:08]} 10... Be6 {[%clk 0:02:42.4]} 11. f4 {[%clk
0:03:08.7]} 11... Rc8 {[%clk 0:02:42.5]} 12. Bf3 {[%clk 0:03:05.3]} 12... Qb6
{[%clk 0:02:41.3]} 13. Nd5 {[%clk 0:02:40.1]} 13... Bxd5 {[%clk 0:02:41.6]} 14.
exd5 {[%clk 0:02:41]} 14... Nb4 {[%clk 0:02:40.6]} 15. c3 {[%clk 0:02:40.9]}
15... Na6 {[%clk 0:02:41.6]} 16. Nd4 {[%clk 0:02:34.2]} 16... Nc5 {[%clk
0:02:39.5]} 17. Nb5 {[%clk 0:02:23.3]} 17... Nce4 {[%clk 0:02:35.3]} 18. Qe2
{[%clk 0:02:16.9]} 18... Nc5 {[%clk 0:02:33.1]} 19. Be3 {[%clk 0:02:04.2]} 19...
Qd8 {[%clk 0:02:33.5]} 20. Bd4 {[%clk 0:01:58.2]} 20... Nb3 {[%clk 0:02:33.5]}
21. Rae1 {[%clk 0:01:56.6]} 21... Nxd4 {[%clk 0:02:34.2]} 22. Nxd4 {[%clk
0:01:57.6]} 22... Re8 {[%clk 0:02:34.9]} 23. Qb5 {[%clk 0:01:56.3]} 23... Qc7
{[%clk 0:02:29.9]} 24. Re3 {[%clk 0:01:51.8]} 24... Kf8 {[%clk 0:02:25.1]} 25.
Rfe1 {[%clk 0:01:47.9]} 25... Nd7 {[%clk 0:02:23.8]} 26. Nb3 {[%clk 0:01:46]}
26... Ra8 {[%clk 0:02:12.6]} 27. Bg4 {[%clk 0:01:38.1]} 27... Nf6 {[%clk
0:02:10.8]} 28. Bf3 {[%clk 0:01:38.3]} 28... Nd7 {[%clk 0:02:11.7]} 29. g3
{[%clk 0:01:23]} 29... h5 {[%clk 0:02:11.7]} 30. f5 {[%clk 0:01:20.4]} 30... Ne5
{[%clk 0:02:08.2]} 31. fxg6 {[%clk 0:01:20.2]} 31... fxg6 {[%clk 0:02:07.1]} 32.
Nd4 {[%clk 0:01:18.5]} 32... Kg8 {[%clk 0:02:05.6]} 33. Ne6 {[%clk 0:01:19.1]}
33... Qd7 {[%clk 0:02:06.5]} 34. Qxd7 {[%clk 0:01:14.6]} 34... Nxd7 {[%clk
0:02:06.3]} 35. Nxg7 {[%clk 0:01:16.1]} 35... Kxg7 {[%clk 0:02:05.8]} 36. Rxe7+
{[%clk 0:01:17.3]} 36... Kf8 {[%clk 0:02:06.9]} 37. R7e6 {[%clk 0:01:14.5]}
37... Nc5 {[%clk 0:02:03.5]} 38. Rf6+ {[%clk 0:01:13.9]} 38... Kg7 {[%clk
0:02:03.8]} 39. Rxe8 {[%clk 0:01:15.3]} 39... Rxe8 {[%clk 0:02:04.4]} 40. Rxd6
{[%clk 0:01:16.8]} 40... Nxa4 {[%clk 0:02:04.1]} 41. Rd7+ {[%clk 0:01:17.5]}
41... Kf6 {[%clk 0:02:04.8]} 42. Rxb7 {[%clk 0:01:18.9]} 42... Re1+ {[%clk
0:02:05.7]} 43. Kg2 {[%clk 0:01:19.4]} 43... Rb1 {[%clk 0:02:06.8]} 44. c4
{[%clk 0:00:57.6]} 44... Rxb2+ {[%clk 0:02:07.3]} 45. Rxb2 {[%clk 0:00:47.3]}
45... Nxb2 {[%clk 0:02:09.2]} 46. c5 {[%clk 0:00:46.7]} 46... a4 {[%clk
0:02:10.1]} 47. d6 {[%clk 0:00:29.6]} 47... Ke6 {[%clk 0:02:09.8]} 48. Be4
{[%clk 0:00:29.1]} 48... a3 {[%clk 0:02:08.5]} 49. Bb1 {[%clk 0:00:28.4]} 49...
Na4 {[%clk 0:02:09.3]} 50. Kf3 {[%clk 0:00:23.6]} 50... Nc3 {[%clk 0:02:02]} 51.
Bc2 {[%clk 0:00:05.4]} 51... a2 {[%clk 0:02:02.4]} 52. Bb3+ {[%clk 0:00:06.5]}
52... Kd7 {[%clk 0:02:02.8]} 53. Bxa2 {[%clk 0:00:08]} 53... Nxa2 {[%clk
0:02:03.9]} 54. Kf4 {[%clk 0:00:09.9]} 54... Nc3 {[%clk 0:01:52.6]} 55. Kg5
{[%clk 0:00:11.2]} 55... Na4 {[%clk 0:01:53.9]} 56. Kxg6 {[%clk 0:00:12.5]}
56... Nxc5 {[%clk 0:01:55.2]} 57. Kxh5 {[%clk 0:00:13.7]} 57... Kxd6 {[%clk
0:01:56.7]} 58. g4 {[%clk 0:00:14.6]} 58... Ke6 {[%clk 0:01:58.2]} 59. Kg6
{[%clk 0:00:15]} 59... Ne4 {[%clk 0:01:58.4]} 60. h4 {[%clk 0:00:15.1]} 60...
Ke7 {[%clk 0:01:56.7]} 61. Kg7 {[%clk 0:00:14.2]} 61... Nf2 {[%clk 0:01:55.5]}
62. g5 {[%clk 0:00:14.9]} 62... Ng4 {[%clk 0:01:54.4]} 63. h5 {[%clk 0:00:15.3]}
63... Ke6 {[%clk 0:01:47.4]} 64. h6 {[%clk 0:00:15.5]} 64... Nxh6 {[%clk
0:01:48.3]} 65. gxh6 {[%clk 0:00:16]} 1-0

[Event "*** Titled Tuesday Blitz"]
[Site "Chess.com"]
[Date "2019.05.07"]
[Round "6"]
[White "NeverEverForever1990"]
[Black "ENEASZ"]
[Result "1-0"]
[WhiteElo "2440"]
[BlackElo "2504"]
[TimeControl "180+2"]
[EndTime "14:27:21 PDT"]
[Termination "NeverEverForever1990 won by checkmate"]

1. d4 {[%clk 0:03:01.9]} 1... Nf6 {[%clk 0:03:00.5]} 2. c4 {[%clk 0:03:02.3]}
2... g6 {[%clk 0:03:01.5]} 3. Nc3 {[%clk 0:03:03.6]} 3... d5 {[%clk 0:03:02.9]}
4. cxd5 {[%clk 0:03:02.9]} 4... Nxd5 {[%clk 0:03:04.8]} 5. Nf3 {[%clk
0:03:02.6]} 5... Bg7 {[%clk 0:03:05.4]} 6. e4 {[%clk 0:03:03.5]} 6... Nxc3
{[%clk 0:03:06.5]} 7. bxc3 {[%clk 0:03:05.4]} 7... O-O {[%clk 0:03:07.7]} 8. Be2
{[%clk 0:03:01.3]} 8... c5 {[%clk 0:03:08.6]} 9. O-O {[%clk 0:02:54.7]} 9... Nc6
{[%clk 0:03:09.2]} 10. d5 {[%clk 0:02:51.8]} 10... Ne5 {[%clk 0:03:07.8]} 11.
Nxe5 {[%clk 0:02:46.1]} 11... Bxe5 {[%clk 0:03:09.7]} 12. Bh6 {[%clk 0:02:47.5]}
12... Bxc3 {[%clk 0:03:10.7]} 13. Bxf8 {[%clk 0:02:41.4]} 13... Qxf8 {[%clk
0:03:12.6]} 14. Rc1 {[%clk 0:02:40.2]} 14... Bd4 {[%clk 0:03:14]} 15. Qb3 {[%clk
0:02:30]} 15... b6 {[%clk 0:03:14.9]} 16. Rfd1 {[%clk 0:02:28.4]} 16... Qh6
{[%clk 0:03:13.5]} 17. Qg3 {[%clk 0:02:24.1]} 17... Qg7 {[%clk 0:02:41]} 18. Qc7
{[%clk 0:02:21.4]} 18... Qf6 {[%clk 0:02:36.8]} 19. Bf3 {[%clk 0:02:01.6]} 19...
Be5 {[%clk 0:02:29.5]} 20. Qc6 {[%clk 0:01:59.4]} 20... Qxc6 {[%clk 0:02:28.5]}
21. dxc6 {[%clk 0:02:01.3]} 21... Be6 {[%clk 0:02:29.6]} 22. Rd5 {[%clk
0:01:46.1]} 22... f6 {[%clk 0:02:23.5]} 23. Rcd1 {[%clk 0:01:38.9]} 23... Bxd5
{[%clk 0:02:20.3]} 24. exd5 {[%clk 0:01:33.6]} 24... Bd6 {[%clk 0:02:20]} 25.
Be2 {[%clk 0:01:33.9]} 25... f5 {[%clk 0:02:14.9]} 26. Ba6 {[%clk 0:01:33.9]}
26... Kf7 {[%clk 0:02:15.6]} 27. Re1 {[%clk 0:01:35.4]} 27... Rd8 {[%clk
0:02:14.7]} 28. g3 {[%clk 0:01:34.9]} 28... g5 {[%clk 0:02:15.6]} 29. Kg2 {[%clk
0:01:35.7]} 29... g4 {[%clk 0:02:16.4]} 30. h3 {[%clk 0:01:33.9]} 30... gxh3+
{[%clk 0:02:13.9]} 31. Kxh3 {[%clk 0:01:34.9]} 31... Rg8 {[%clk 0:02:15.4]} 32.
f4 {[%clk 0:01:30.1]} 32... Rg6 {[%clk 0:02:06.1]} 33. Bc8 {[%clk 0:01:30.1]}
33... c4 {[%clk 0:02:01]} 34. Bxf5 {[%clk 0:01:28]} 34... Rh6+ {[%clk
0:01:52.3]} 35. Kg4 {[%clk 0:01:27.2]} 35... Rh2 {[%clk 0:01:48.9]} 36. Rc1
{[%clk 0:01:20.8]} 36... b5 {[%clk 0:01:48.3]} 37. a4 {[%clk 0:01:21.9]} 37...
a6 {[%clk 0:01:25.8]} 38. Bc8 {[%clk 0:01:22.5]} 38... h5+ {[%clk 0:01:15.1]}
39. Kf5 {[%clk 0:01:22.4]} 39... bxa4 {[%clk 0:01:13.3]} 40. Bxa6 {[%clk
0:01:20.5]} 40... a3 {[%clk 0:01:11.7]} 41. Bxc4 {[%clk 0:01:21.7]} 41... Ke8
{[%clk 0:00:55.5]} 42. Rb1 {[%clk 0:01:02.7]} 42... Kd8 {[%clk 0:00:34.5]} 43.
Rb7 {[%clk 0:01:02]} 43... Rg2 {[%clk 0:00:26.3]} 44. Ra7 {[%clk 0:00:52.9]}
44... Rxg3 {[%clk 0:00:24.2]} 45. Bb5 {[%clk 0:00:45.4]} 45... Kc8 {[%clk
0:00:21.3]} 46. Ba6+ {[%clk 0:00:40.6]} 46... Kd8 {[%clk 0:00:15.8]} 47. Ke6
{[%clk 0:00:34.5]} 47... Re3+ {[%clk 0:00:13.1]} 48. Kf7 {[%clk 0:00:35.7]}
48... h4 {[%clk 0:00:14.3]} 49. Rd7# {[%clk 0:00:36.7]} 1-0

[Event "*** Titled Tuesday Blitz"]
[Site "Chess.com"]
[Date "2019.05.07"]
[Round "6"]
[White "Roenko_Artur"]
[Black "tteshan"]
[Result "1-0"]
[WhiteElo "2209"]
[BlackElo "2291"]
[TimeControl "180+2"]
[EndTime "14:27:30 PDT"]
[Termination "Roenko_Artur won by resignation"]

1. e4 {[%clk 0:03:01.9]} 1... c5 {[%clk 0:03:00.8]} 2. d4 {[%clk 0:03:02.7]}
2... cxd4 {[%clk 0:03:01.5]} 3. c3 {[%clk 0:03:04]} 3... dxc3 {[%clk 0:03:02.3]}
4. Nxc3 {[%clk 0:03:05.9]} 4... Nc6 {[%clk 0:03:03]} 5. Nf3 {[%clk 0:03:06.4]}
5... g6 {[%clk 0:03:04.3]} 6. Bc4 {[%clk 0:03:07]} 6... Bg7 {[%clk 0:03:05]} 7.
O-O {[%clk 0:03:05.8]} 7... d6 {[%clk 0:03:02.6]} 8. Qb3 {[%clk 0:02:37.3]} 8...
e6 {[%clk 0:02:43.3]} 9. Bg5 {[%clk 0:02:35.7]} 9... Nge7 {[%clk 0:02:42.3]} 10.
Rfd1 {[%clk 0:02:31.7]} 10... a6 {[%clk 0:02:34.7]} 11. Qa3 {[%clk 0:02:22.6]}
11... Qc7 {[%clk 0:02:02.2]} 12. Rxd6 {[%clk 0:02:12.4]} 12... O-O {[%clk
0:01:57.2]} 13. Rad1 {[%clk 0:02:06.4]} 13... Rb8 {[%clk 0:01:45.9]} 14. Be2
{[%clk 0:01:39.8]} 14... b5 {[%clk 0:01:45.3]} 15. Qc5 {[%clk 0:01:40.3]} 15...
f6 {[%clk 0:01:13.1]} 16. Bf4 {[%clk 0:01:28.2]} 16... e5 {[%clk 0:01:11.9]} 17.
Be3 {[%clk 0:01:27.1]} 17... Re8 {[%clk 0:01:05]} 18. Nd5 {[%clk 0:01:22.1]}
18... Qb7 {[%clk 0:00:48.5]} 19. Nxf6+ {[%clk 0:01:08.1]} 19... Bxf6 {[%clk
0:00:46.3]} 20. Rxf6 {[%clk 0:01:09.2]} 20... Bg4 {[%clk 0:00:39.5]} 21. Rdd6
{[%clk 0:00:46.5]} 21... Rbc8 {[%clk 0:00:34.8]} 22. Qc3 {[%clk 0:00:34.6]}
22... Nd4 {[%clk 0:00:28.7]} 23. Qd2 {[%clk 0:00:25.4]} 23... Rc2 {[%clk
0:00:26.3]} 24. Rxd4 {[%clk 0:00:20.6]} 24... Rxd2 {[%clk 0:00:26.2]} 25. Rxd2
{[%clk 0:00:20.8]} 25... Qxe4 {[%clk 0:00:22.4]} 26. h3 {[%clk 0:00:21.9]} 26...
Bxf3 {[%clk 0:00:20.6]} 27. Bxf3 {[%clk 0:00:22.8]} 27... Qb1+ {[%clk
0:00:21.6]} 28. Kh2 {[%clk 0:00:23.7]} 28... Kg7 {[%clk 0:00:22.2]} 29. Rfd6
{[%clk 0:00:23.2]} 29... Qxa2 {[%clk 0:00:22.8]} 30. Rd7 {[%clk 0:00:21.4]}
30... Qf7 {[%clk 0:00:23.2]} 31. Bg5 {[%clk 0:00:21.5]} 31... Qe6 {[%clk
0:00:21.7]} 32. Bg4 {[%clk 0:00:21.5]} 32... Qc4 {[%clk 0:00:18.7]} 33. Bxe7
{[%clk 0:00:20.5]} 33... Kh6 {[%clk 0:00:18.7]} 34. Bh4 {[%clk 0:00:18]} 34...
Qf4+ {[%clk 0:00:18.6]} 35. Bg3 {[%clk 0:00:18]} 35... Qc4 {[%clk 0:00:19.2]}
36. Rb7 {[%clk 0:00:14.6]} 36... Qc5 {[%clk 0:00:11.4]} 37. Rdd7 {[%clk
0:00:14.6]} 37... Rh8 {[%clk 0:00:11.6]} 38. Re7 {[%clk 0:00:16]} 38... Kg5
{[%clk 0:00:07.2]} 39. Rxe5+ {[%clk 0:00:14.2]} 39... Qxe5 {[%clk 0:00:03.9]}
40. Bxe5 {[%clk 0:00:16.1]} 40... Re8 {[%clk 0:00:05.4]} 41. Bg3 {[%clk
0:00:15]} 41... Kh6 {[%clk 0:00:06.5]} 42. Bf4+ {[%clk 0:00:15.7]} 42... g5
{[%clk 0:00:07.9]} 43. Rb6+ {[%clk 0:00:16.5]} 43... Kg7 {[%clk 0:00:09.5]} 44.
Bxg5 {[%clk 0:00:18.1]} 44... Re5 {[%clk 0:00:10.1]} 1-0